fUST/lending_fUST_20250408
["ID","MTS","AMOUNT","RATE_DAILY","PERIOD"]
[357442031,1744067465811,-500.0,0.00026027,2]
[357442032,1744067465821,-1487.0,0.00026027,2]
[357442033,1744067465831,-500.0,0.00026027,2]
[357442034,1744067465841,-500.0,0.00026027,2]
[357442035,1744067465851,-5056.29,0.00026027,2]
[357442036,1744067465861,-636.86,0.00026027,2]
[357442037,1744067465871,-1012.24,0.00026027,2]
[357442038,1744067465881,-717.76,0.00026027,2]
[357442039,1744067465891,-1782.72,0.00026027,2]
[357442040,1744067465902,-1521.98,0.00026027,2]
[357442041,1744067465912,-567.33,0.00026027,2]
[357442042,1744067465922,-1638.21,0.00026027,2]
[357442043,1744067465932,-1445.23,0.00026027,2]
[357442044,1744067465943,-500.0,0.00026027,2]
[357442045,1744067465953,-2872.91,0.00026027,2]
[357442046,1744067465964,-500.0,0.00026027,2]
[357442047,1744067465974,-1631.28,0.00026027,2]
[357442048,1744067465984,-500.0,0.00026027,2]
[357442049,1744067465994,-500.0,0.00026027,2]
[357442050,1744067466005,-500.0,0.00026027,2]
[357442051,1744067466015,-500.0,0.00026027,2]
[357442052,1744067466025,-2426.48,0.00026027,2]
[357442053,1744067466035,-967.51,0.00026027,2]
[357442054,1744067466045,-863.93,0.00026027,2]
[357442055,1744067466055,-812.79,0.00026027,2]
[357442056,1744067466065,-1106.82,0.00026027,2]
[357442057,1744067466075,-980.44,0.00026027,2]
[357442058,1744067466087,-500.0,0.00026027,2]
[357442059,1744067466097,-401.7,0.00026027,2]
[357442060,1744067466107,-674.71,0.00026027,2]
[357442061,1744067466118,-500.0,0.00026027,2]
[357442062,1744067466128,-2137.41,0.00026027,2]
[357442063,1744067466138,-1017.95,0.00026027,2]
[357442064,1744067466149,-500.0,0.00026027,2]
[357442065,1744067466159,-500.0,0.00026027,2]
[357442066,1744067466170,-7695.73,0.00026027,2]
[357442067,1744067466180,-1764.25,0.00026027,2]
[357442068,1744067466190,-938.09,0.00026027,2]
[357442069,1744067466200,-1518.56,0.00026027,2]
[357442070,1744067466210,-500.0,0.00026118,2]
[357442071,1744067466220,-500.0,0.00026301,2]
[357442072,1744067466230,-500.0,0.00026301,2]
[357442073,1744067466244,-500.0,0.00026301,2]
[357442074,1744067466254,-500.0,0.00026301,2]
[357442075,1744067466264,-500.0,0.00026301,2]
[357442076,1744067466274,-500.0,0.00026301,2]
[357442077,1744067466285,-1072.29,0.00026301,2]
[357442078,1744067466295,-464.78832632,0.00026301,2]
[357442079,1744067466305,-500.0,0.00026301,2]
[357442080,1744067466316,-927.79,0.00026301,2]
[357442081,1744067466327,-881.96,0.00026301,2]
[357442082,1744067466337,-547.24,0.00026301,2]
[357442083,1744067466348,-630.97,0.00026301,2]
[357442084,1744067466357,-616.34,0.00026301,2]
[357442085,1744067466367,-513.62554278,0.00026301,2]
[357442086,1744067466377,-605.8,0.00026301,2]
[357442087,1744067466386,-1060.35,0.00026301,2]
[357442088,1744067466396,-541.6,0.00026301,2]
[357442089,1744067466406,-500.0,0.00026301,2]
[357442090,1744067466415,-1035.03,0.00026301,2]
[357442091,1744067466425,-668.67,0.00026301,2]
[357442092,1744067466435,-266.56,0.00026301,2]
[357442093,1744067466445,-619.26,0.00026301,2]
[357442094,1744067466455,-816.67,0.00026301,2]
[357442095,1744067466465,-731.78,0.00026301,2]
[357442096,1744067466475,-970.43,0.00026301,2]
[357442097,1744067466485,-540.9,0.00026301,2]
[357442098,1744067466495,-500.0,0.00026301,2]
[357442099,1744067466505,-500.0,0.00026301,2]
[357442100,1744067466515,-2092.69,0.00026301,2]
[357442101,1744067466524,-500.0,0.00026301,2]
[357442102,1744067466534,-500.0,0.00026301,2]
[357442103,1744067466544,-500.0,0.00026301,2]
[357442104,1744067466553,-752.75,0.00026301,2]
[357442105,1744067466563,-1377.51,0.00026301,2]
[357442106,1744067466573,-971.08,0.00026301,2]
[357442107,1744067466583,-619.74,0.00026301,2]
[357442108,1744067466592,-833.2,0.00026301,2]
[357442109,1744067466602,-1253.58,0.00026301,2]
[357442110,1744067466611,-161.937504,0.00026301,7]
[357442111,1744067466621,-161.937504,0.00026301,7]
[357442112,1744067466631,-500.0,0.00026301,2]
[357442113,1744067466641,-674.12,0.00026301,2]
[357442114,1744067466651,-201.90408,0.00026301,7]
[357442115,1744067466661,-1156.07,0.00026301,2]
[357442116,1744067466671,-1162.8,0.00026301,2]
[357442117,1744067466681,-500.0,0.00026301,2]
[357442118,1744067466691,-201.90408,0.00026301,7]
[357442119,1744067466701,-1029.64,0.00026301,2]
[357442120,1744067466711,-503.72,0.00026301,2]
[357442121,1744067466721,-500.0,0.00026301,2]
[357442122,1744067466731,-2686.13,0.00026301,2]
[357442123,1744067466741,-1085.9,0.00026301,2]
[357442124,1744067466751,-1743.37,0.00026301,2]
[357442125,1744067466761,-500.0,0.00026301,2]
[357442126,1744067466771,-618.76,0.00026301,2]
[357442127,1744067466781,-354.018382,0.00026301,7]
[357442128,1744067466791,-1894.63,0.00026301,2]
[357442129,1744067466802,-2082.85,0.00026301,2]
[357442130,1744067466812,-354.018382,0.00026301,7]
[357442131,1744067466823,-500.0,0.00026301,2]
[357442132,1744067466833,-1487.0,0.00026301,2]
[357442133,1744067466843,-500.0,0.00026301,2]
[357442134,1744067466854,-473.9364521,0.00026301,2]
[357442135,1744067466932,-5056.29,0.00026301,2]
[357442136,1744067466943,-636.86,0.00026301,2]
[357442137,1744067466953,-1012.24,0.00026301,2]
[357442138,1744067466962,-717.76,0.00026301,2]
[357442139,1744067466972,-1782.72,0.00026301,2]
[357442140,1744067466982,-1521.98,0.00026301,2]
[357442141,1744067466991,-567.33,0.00026301,2]
[357442142,1744067467001,-1638.21,0.00026301,2]
[357442143,1744067467011,-1445.23,0.00026301,2]
[357442144,1744067467021,-500.0,0.00026301,2]
[357442145,1744067467031,-2872.91,0.00026301,2]
[357442146,1744067467041,-500.0,0.00026301,2]
[357442147,1744067467051,-1631.28,0.00026301,2]
[357442148,1744067467061,-500.0,0.00026301,2]
[357442149,1744067467071,-500.0,0.00026301,2]
[357442150,1744067467082,-232.48,0.00026301,2]
[357442151,1744067467092,-500.0,0.00026301,2]
[357442152,1744067467102,-2426.48,0.00026301,2]
[357442153,1744067467111,-967.51,0.00026301,2]
[357442154,1744067467122,-863.93,0.00026301,2]
[357442155,1744067467131,-812.79,0.00026301,2]
[357442156,1744067467140,-1106.82,0.00026301,2]
[357442157,1744067467150,-980.44,0.00026301,2]
[357442158,1744067467160,-500.0,0.00026301,2]
[357442159,1744067467170,-674.71,0.00026301,2]
[357442160,1744067467179,-500.0,0.00026301,2]
[357442161,1744067467191,-2137.41,0.00026301,2]
[357442162,1744067467200,-262.39832199,0.00026301,2]
[357442163,1744067467210,-500.0,0.00026301,2]
[357442164,1744067467220,-7695.73,0.00026301,2]
[357442165,1744067467229,-1764.25,0.00026301,2]
[357442166,1744067467240,-1017.95,0.00026301,2]
[357442167,1744067467254,-938.09,0.00026301,2]
[357442168,1744067467265,-1518.56,0.00026301,2]
[357442169,1744067467274,-500.0,0.00026575,2]
[357442170,1744067467284,-500.0,0.00026575,2]
[357442171,1744067467295,-500.0,0.00026575,2]
[357442172,1744067467305,-500.0,0.00026575,2]
[357442173,1744067467315,-500.0,0.00026575,2]
[357442174,1744067467327,-253.93766062,0.00026575,2]
[357442175,1744067467336,-1072.29,0.00026575,2]
[357442176,1744067467346,-635.71081871,0.00026575,2]
[357442177,1744067467355,-927.79,0.00026575,2]
[357442178,1744067467364,-881.96,0.00026575,2]
[357442179,1744067467374,-547.24,0.00026575,2]
[357442180,1744067467384,-630.97,0.00026575,2]
[357442181,1744067467393,-616.34,0.00026575,2]
[357442182,1744067467403,-605.8,0.00026575,2]
[357442183,1744067467414,-1060.35,0.00026575,2]
[357442184,1744067467424,-541.6,0.00026575,2]
[357442185,1744067467434,-500.0,0.00026575,2]
[357442186,1744067467443,-1035.03,0.00026575,2]
[357442187,1744067467453,-151.0,0.00026575,7]
[357442188,1744067467464,-151.0,0.00026575,7]
[357442189,1744067467474,-151.0,0.00026575,7]
[357442190,1744067467484,-668.67,0.00026575,2]
[357442191,1744067467494,-619.26,0.00026575,2]
[357442192,1744067467504,-816.67,0.00026575,2]
[357442193,1744067467513,-731.78,0.00026575,2]
[357442194,1744067467523,-970.43,0.00026575,2]
[357442195,1744067467533,-540.9,0.00026575,2]
[357442196,1744067467542,-500.0,0.00026575,2]
[357442197,1744067467552,-612.61447422,0.00026575,2]
[357442198,1744067467562,-2092.69,0.00026575,2]
[357442199,1744067467572,-500.0,0.00026575,2]
[357442200,1744067467581,-500.0,0.00026575,2]
[357442201,1744067467591,-158.44,0.00026575,2]
[357442202,1744067467601,-752.75,0.00026575,2]
[357442203,1744067467611,-1377.51,0.00026575,2]
[357442204,1744067467621,-971.08,0.00026575,2]
[357442205,1744067467631,-619.74,0.00026575,2]
[357442206,1744067467640,-833.2,0.00026575,2]
[357442207,1744067467650,-1253.58,0.00026575,2]
[357442208,1744067467660,-500.0,0.00026575,2]
[357442209,1744067467670,-674.12,0.00026575,2]
[357442210,1744067467680,-1156.07,0.00026575,2]
[357442211,1744067467690,-1162.8,0.00026575,2]
[357442212,1744067467700,-500.0,0.00026575,2]
[357442213,1744067467710,-1029.64,0.00026575,2]
[357442214,1744067467719,-503.72,0.00026575,2]
[357442215,1744067467729,-500.0,0.00026575,2]
[357442216,1744067467739,-2686.13,0.00026575,2]
[357442217,1744067467749,-1085.9,0.00026575,2]
[357442218,1744067467758,-1743.37,0.00026575,2]
[357442219,1744067467768,-328.12711712,0.00026575,2]
[357442220,1744067467778,-618.76,0.00026575,2]
[357442221,1744067467787,-1894.63,0.00026575,2]
[357442222,1744067467797,-2082.85,0.00026575,2]
[357442223,1744067467806,-500.0,0.00026575,2]
[357442224,1744067467816,-1487.0,0.00026575,2]
[357442225,1744067467825,-373.06070026,0.00026575,2]
[357442226,1744067467835,-5056.29,0.00026575,2]
[357442227,1744067467845,-636.86,0.00026575,2]
[357442228,1744067467854,-1012.24,0.00026575,2]
[357442229,1744067467864,-717.76,0.00026575,2]
[357442230,1744067467874,-1782.72,0.00026575,2]
[357442231,1744067467884,-1521.98,0.00026575,2]
[357442232,1744067467893,-567.33,0.00026575,2]
[357442233,1744067467904,-1638.21,0.00026575,2]
[357442234,1744067467913,-1445.23,0.00026575,2]
[357442235,1744067467923,-500.0,0.00026575,2]
[357442236,1744067467933,-2872.91,0.00026575,2]
[357442237,1744067467943,-500.0,0.00026575,2]
[357442238,1744067467953,-1631.28,0.00026575,2]
[357442239,1744067467962,-353.6,0.00026575,2]
[357442240,1744067467972,-500.0,0.00026575,2]
[357442241,1744067467981,-500.0,0.00026575,2]
[357442242,1744067467990,-2426.48,0.00026575,2]
[357442243,1744067468005,-967.51,0.00026575,2]
[357442244,1744067468015,-863.93,0.00026575,2]
[357442245,1744067468025,-812.79,0.00026575,2]
[357442246,1744067468035,-1106.82,0.00026575,2]
[357442247,1744067468044,-980.44,0.00026575,2]
[357442248,1744067468054,-500.0,0.00026575,2]
[357442249,1744067468064,-674.71,0.00026575,2]
[357442250,1744067468073,-359.21,0.00026575,2]
[357442251,1744067468084,-2137.41,0.00026575,2]
[357442252,1744067468094,-500.0,0.00026575,2]
[357442253,1744067468104,-7695.73,0.00026575,2]
[357442254,1744067468118,-1764.25,0.00026575,2]
[357442255,1744067468128,-1017.95,0.00026575,2]
[357442256,1744067468138,-938.09,0.00026575,2]
[357442257,1744067468147,-1518.56,0.00026575,2]
[357442258,1744067468157,-522.9106649,0.00026849,2]
[357442259,1744067468167,-500.0,0.00026849,2]
[357442260,1744067468177,-174.445676,0.00026849,7]
[357442261,1744067468187,-174.445676,0.00026849,7]
[357442262,1744067468196,-500.0,0.00026849,2]
[357442263,1744067468206,-500.0,0.00026849,2]
[357442264,1744067468215,-328.78449259,0.00026849,2]
[357442265,1744067468225,-1072.29,0.00026849,2]
[357442266,1744067468234,-927.79,0.00026849,2]
[357442267,1744067468247,-881.96,0.00026849,2]
[357442268,1744067468257,-547.24,0.00026849,2]
[357442269,1744067468267,-630.97,0.00026849,2]
[357442270,1744067468277,-616.34,0.00026849,2]
[357442271,1744067468286,-605.8,0.00026849,2]
[357442272,1744067468296,-1060.35,0.00026849,2]
[357442273,1744067468305,-541.6,0.00026849,2]
[357442274,1744067468315,-500.0,0.00026849,2]
[357442275,1744067468326,-151.0,0.00026849,2]
[357442276,1744067468336,-242.11421,0.00026849,2]
[357442277,1744067468346,-1035.03,0.00026849,2]
[357442278,1744067468356,-668.67,0.00026849,2]
[357442279,1744067468365,-619.26,0.00026849,2]
[357442280,1744067468374,-816.67,0.00026849,2]
[357442281,1744067468384,-731.78,0.00026849,2]
[357442282,1744067468394,-970.43,0.00026849,2]
[357442283,1744067468403,-540.9,0.00026849,2]
[357442284,1744067468412,-500.0,0.00026849,2]
[357442285,1744067468423,-2092.69,0.00026849,2]
[357442286,1744067468432,-512.39760105,0.00026849,2]
[357442287,1744067468442,-500.0,0.00026849,2]
[357442288,1744067468452,-752.75,0.00026849,2]
[357442289,1744067468461,-1377.51,0.00026849,2]
[357442290,1744067468471,-971.08,0.00026849,2]
[357442291,1744067468480,-619.74,0.00026849,2]
[357442292,1744067468490,-833.2,0.00026849,2]
[357442293,1744067468501,-1253.58,0.00026849,2]
[357442294,1744067468510,-500.0,0.00026849,2]
[357442295,1744067468521,-674.12,0.00026849,2]
[357442296,1744067468530,-1156.07,0.00026849,2]
[357442297,1744067468540,-1162.8,0.00026849,2]
[357442298,1744067468550,-500.0,0.00026849,2]
[357442299,1744067468559,-1029.64,0.00026849,2]
[357442300,1744067468569,-503.72,0.00026849,2]
[357442301,1744067468579,-595.56494557,0.00026849,2]
[357442302,1744067468589,-2686.13,0.00026849,2]
[357442303,1744067468598,-1085.9,0.00026849,2]
[357442304,1744067468607,-1743.37,0.00026849,2]
[357442305,1744067468617,-618.76,0.00026849,2]
[357442306,1744067468629,-1894.63,0.00026849,2]
[357442307,1744067468639,-2082.85,0.00026849,2]
[357442308,1744067468649,-405.03657698,0.00026849,2]
[357442309,1744067468659,-1487.0,0.00026849,2]
[357442310,1744067468669,-5056.29,0.00026849,2]
[357442311,1744067468678,-636.86,0.00026849,2]
[357442312,1744067468687,-1012.24,0.00026849,2]
[357442313,1744067468697,-717.76,0.00026849,2]
[357442314,1744067468707,-1782.72,0.00026849,2]
[357442315,1744067468717,-1521.98,0.00026849,2]
[357442316,1744067468726,-567.33,0.00026849,2]
[357442317,1744067468736,-1638.21,0.00026849,2]
[357442318,1744067468746,-1445.23,0.00026849,2]
[357442319,1744067468756,-500.0,0.00026849,2]
[357442320,1744067468766,-2872.91,0.00026849,2]
[357442321,1744067468776,-164.21711202,0.00026849,2]
[357442322,1744067468785,-1631.28,0.00026849,2]
[357442323,1744067468794,-483.78949163,0.00026849,2]
[357442324,1744067468804,-248.17,0.00026849,2]
[357442325,1744067468814,-2426.48,0.00026849,2]
[357442326,1744067468825,-967.51,0.00026849,2]
[357442327,1744067468834,-863.93,0.00026849,2]
[357442328,1744067468844,-812.79,0.00026849,2]
[357442329,1744067468854,-1106.82,0.00026849,2]
[357442330,1744067468864,-980.44,0.00026849,2]
[357442331,1744067468874,-500.0,0.00026849,2]
[357442332,1744067468884,-674.71,0.00026849,2]
[357442333,1744067468894,-2137.41,0.00026849,2]
[357442334,1744067468904,-500.0,0.00026849,2]
[357442335,1744067468915,-7695.73,0.00026849,2]
[357442336,1744067468925,-1764.25,0.00026849,2]
[357442337,1744067468935,-1017.95,0.00026849,2]
[357442338,1744067468944,-938.09,0.00026849,2]
[357442339,1744067468954,-1518.56,0.00026849,2]
[357442340,1744067468963,-231.28369723,0.0002698,2]
[357442341,1744067468973,-823.0,0.00027028,2]
[357442342,1744067468984,-823.0,0.00027028,2]
[357442343,1744067468995,-500.0,0.00027123,2]
[357442344,1744067469004,-304.34138352,0.00027123,2]
[357442345,1744067469014,-500.0,0.00027123,2]
[357442346,1744067469023,-1072.29,0.00027123,2]
[357442347,1744067469034,-927.79,0.00027123,2]
[357442348,1744067469044,-881.96,0.00027123,2]
[357442349,1744067469054,-547.24,0.00027123,2]
[357442350,1744067469063,-630.97,0.00027123,2]
[357442351,1744067469073,-616.34,0.00027123,2]
[357442352,1744067469084,-605.8,0.00027123,2]
[357442353,1744067469094,-1060.35,0.00027123,2]
[357442354,1744067469104,-541.6,0.00027123,2]
[357442355,1744067469114,-500.0,0.00027123,2]
[357442356,1744067469123,-1035.03,0.00027123,2]
[357442357,1744067469134,-668.67,0.00027123,2]
[357442358,1744067469143,-619.26,0.00027123,2]
[357442359,1744067469153,-816.67,0.00027123,2]
[357442360,1744067469163,-731.78,0.00027123,2]
[357442361,1744067469174,-970.43,0.00027123,2]
[357442362,1744067469184,-540.9,0.00027123,2]
[357442363,1744067469193,-500.0,0.00027123,2]
[357442364,1744067469203,-2092.69,0.00027123,2]
[357442365,1744067469212,-500.0,0.00027123,2]
[357442366,1744067469222,-752.75,0.00027123,2]
[357442367,1744067469231,-1377.51,0.00027123,2]
[357442368,1744067469241,-971.08,0.00027123,2]
[357442369,1744067469255,-619.74,0.00027123,2]
[357442370,1744067469265,-833.2,0.00027123,2]
[357442371,1744067469275,-1253.58,0.00027123,2]
[357442372,1744067469285,-500.0,0.00027123,2]
[357442373,1744067469296,-674.12,0.00027123,2]
[357442374,1744067469306,-1156.07,0.00027123,2]
[357442375,1744067469316,-1162.8,0.00027123,2]
[357442376,1744067469326,-399.29,0.00027123,2]
[357442377,1744067469336,-1029.64,0.00027123,2]
[357442378,1744067469346,-503.72,0.00027123,2]
[357442379,1744067469355,-2686.13,0.00027123,2]
[357442380,1744067469364,-1085.9,0.00027123,2]
[357442381,1744067469374,-1743.37,0.00027123,2]
[357442382,1744067469383,-618.76,0.00027123,2]
[357442383,1744067469393,-1894.63,0.00027123,2]
[357442384,1744067469402,-2082.85,0.00027123,2]
[357442385,1744067469412,-1487.0,0.00027123,2]
[357442386,1744067469422,-5056.29,0.00027123,2]
[357442387,1744067469431,-636.86,0.00027123,2]
[357442388,1744067469441,-1012.24,0.00027123,2]
[357442389,1744067469451,-717.76,0.00027123,2]
[357442390,1744067469461,-1782.72,0.00027123,2]
[357442391,1744067469471,-1521.98,0.00027123,2]
[357442392,1744067469480,-567.33,0.00027123,2]
[357442393,1744067469491,-1638.21,0.00027123,2]
[357442394,1744067469501,-1445.23,0.00027123,2]
[357442395,1744067469511,-500.0,0.00027123,2]
[357442396,1744067469521,-2872.91,0.00027123,2]
[357442397,1744067469540,-1631.28,0.00027123,2]
[357442398,1744067469555,-2426.48,0.00027123,2]
[357442399,1744067469565,-967.51,0.00027123,2]
[357442400,1744067469576,-863.93,0.00027123,2]
[357442401,1744067469587,-812.79,0.00027123,2]
[357442402,1744067469597,-1106.82,0.00027123,2]
[357442403,1744067469608,-980.44,0.00027123,2]
[357442404,1744067469618,-500.0,0.00027123,2]
[357442405,1744067469628,-674.71,0.00027123,2]
[357442406,1744067469639,-2137.41,0.00027123,2]
[357442407,1744067469650,-500.0,0.00027123,2]
[357442408,1744067469661,-7695.73,0.00027123,2]
[357442409,1744067469671,-1764.25,0.00027123,2]
[357442410,1744067469681,-1017.95,0.00027123,2]
[357442411,1744067469691,-938.09,0.00027123,2]
[357442412,1744067469701,-1518.56,0.00027123,2]
[357442413,1744067469712,-500.0,0.00027397,2]
[357442414,1744067469722,-500.0,0.00027397,2]
[357442415,1744067469733,-500.0,0.00027397,2]
[357442416,1744067469743,-500.0,0.00027397,2]
[357442417,1744067469754,-500.0,0.00027397,2]
[357442418,1744067469764,-452.638,0.00027397,2]
[357442419,1744067469775,-500.0,0.00027397,2]
[357442420,1744067469785,-500.0,0.00027397,2]
[357442421,1744067469795,-500.0,0.00027397,2]
[357442422,1744067469806,-500.0,0.00027397,2]
[357442423,1744067469816,-1072.29,0.00027397,2]
[357442424,1744067469827,-927.79,0.00027397,2]
[357442425,1744067469837,-881.96,0.00027397,2]
[357442426,1744067469848,-547.24,0.00027397,2]
[357442427,1744067469859,-630.97,0.00027397,2]
[357442428,1744067469869,-616.34,0.00027397,2]
[357442429,1744067469879,-151.0,0.00027397,7]
[357442430,1744067469890,-605.8,0.00027397,2]
[357442431,1744067469900,-1060.35,0.00027397,2]
[357442432,1744067469911,-541.6,0.00027397,2]
[357442433,1744067469923,-500.0,0.00027397,2]
[357442434,1744067469934,-1035.03,0.00027397,2]
[357442435,1744067469944,-668.67,0.00027397,2]
[357442436,1744067469954,-619.26,0.00027397,2]
[357442437,1744067469965,-816.67,0.00027397,2]
[357442438,1744067469975,-731.78,0.00027397,2]
[357442439,1744067469985,-2479.01127664,0.00027397,120]
[357442440,1744067469996,-970.43,0.00027397,2]
[357442441,1744067470007,-540.9,0.00027397,2]
[357442442,1744067470018,-380.14489167,0.00027397,2]
[357442443,1744067470028,-2092.69,0.00027397,2]
[357442444,1744067470039,-500.0,0.00027397,2]
[357442445,1744067470049,-752.75,0.00027397,2]
[357442446,1744067470060,-1377.51,0.00027397,2]
[357442447,1744067470071,-971.08,0.00027397,2]
[357442448,1744067470081,-619.74,0.00027397,2]
[357442449,1744067470092,-833.2,0.00027397,2]
[357442450,1744067470103,-1253.58,0.00027397,2]
[357442451,1744067470114,-500.0,0.00027397,2]
[357442452,1744067470125,-674.12,0.00027397,2]
[357442453,1744067470136,-1156.07,0.00027397,2]
[357442454,1744067470151,-1162.8,0.00027397,2]
[357442455,1744067470162,-1029.64,0.00027397,2]
[357442456,1744067470173,-503.72,0.00027397,2]
[357442457,1744067470183,-2686.13,0.00027397,2]
[357442458,1744067470193,-1085.9,0.00027397,2]
[357442459,1744067470204,-1743.37,0.00027397,2]
[357442460,1744067470214,-618.76,0.00027397,2]
[357442461,1744067470224,-1894.63,0.00027397,2]
[357442462,1744067470236,-2082.85,0.00027397,2]
[357442463,1744067470249,-1487.0,0.00027397,2]
[357442464,1744067470265,-5056.29,0.00027397,2]
[357442465,1744067470275,-636.86,0.00027397,2]
[357442466,1744067470286,-1012.24,0.00027397,2]
[357442467,1744067470296,-717.76,0.00027397,2]
[357442468,1744067470306,-1782.72,0.00027397,2]
[357442469,1744067470317,-1521.98,0.00027397,2]
[357442470,1744067470330,-567.33,0.00027397,2]
[357442471,1744067470341,-1638.21,0.00027397,2]
[357442472,1744067470351,-1445.23,0.00027397,2]
[357442473,1744067470362,-500.0,0.00027397,2]
[357442474,1744067470372,-2872.91,0.00027397,2]
[357442475,1744067470382,-1631.28,0.00027397,2]
[357442476,1744067470393,-2426.48,0.00027397,2]
[357442477,1744067470403,-967.51,0.00027397,2]
[357442478,1744067470413,-863.93,0.00027397,2]
[357442479,1744067470424,-812.79,0.00027397,2]
[357442480,1744067470434,-1106.82,0.00027397,2]
[357442481,1744067470445,-980.44,0.00027397,2]
[357442482,1744067470455,-500.0,0.00027397,2]
[357442483,1744067470466,-674.71,0.00027397,2]
[357442484,1744067470477,-2137.41,0.00027397,2]
[357442485,1744067470487,-500.0,0.00027397,2]
[357442486,1744067470498,-7695.73,0.00027397,2]
[357442487,1744067470508,-1764.25,0.00027397,2]
[357442488,1744067470519,-1017.95,0.00027397,2]
[357442489,1744067470529,-938.09,0.00027397,2]
[357442490,1744067470539,-1518.56,0.00027397,2]
[357442491,1744067470550,-151.165071,0.00027397,7]
[357442492,1744067470560,-159.069288,0.00027397,120]
[357442493,1744067470570,-1000.0,0.00027452,5]
[357442494,1744067470580,-1000.0,0.00027452,5]
[357442495,1744067470591,-210.43057469,0.00027452,5]
[357442496,1744067470601,-1000.0,0.00027452,5]
[357442497,1744067470611,-1000.0,0.00027452,5]
[357442498,1744067470622,-28106.83534024,0.00027541,15]
[357442499,1744067470632,-638.01889874,0.00027652,5]
[357442500,1744067470643,-1000.0,0.00027652,5]
[357442501,1744067470654,-1000.0,0.00027652,5]
[357442502,1744067470665,-852.21843481,0.00027652,5]
[357442503,1744067470676,-1000.0,0.00027652,5]
[357442504,1744067470687,-1000.0,0.00027652,2]
[357442505,1744067470698,-884.93068297,0.00027652,5]
[357442506,1744067470708,-1000.0,0.00027652,5]
[357442507,1744067470719,-1000.0,0.00027652,5]
[357442508,1744067470730,-1000.0,0.00027652,5]
[357442509,1744067470740,-1000.0,0.00027652,5]
[357442510,1744067470751,-1000.0,0.00027652,5]
[357442511,1744067470762,-1000.0,0.00027652,5]
[357442512,1744067470773,-1000.0,0.00027652,2]
[357442513,1744067470783,-1000.0,0.00027652,5]
[357442514,1744067470794,-1000.0,0.00027652,5]
[357442515,1744067470805,-1000.0,0.00027652,5]
[357442516,1744067470816,-221.75640487,0.00027671,2]
[357442517,1744067470826,-500.0,0.00027671,2]
[357442518,1744067470837,-1072.29,0.00027671,2]
[357442519,1744067470848,-927.79,0.00027671,2]
[357442520,1744067470860,-881.96,0.00027671,2]
[357442521,1744067470872,-547.24,0.00027671,2]
[357442522,1744067470884,-630.97,0.00027671,2]
[357442523,1744067470896,-616.34,0.00027671,2]
[357442524,1744067470908,-605.8,0.00027671,2]
[357442525,1744067470921,-1060.35,0.00027671,2]
[357442526,1744067470933,-541.6,0.00027671,2]
[357442527,1744067470945,-443.55788733,0.00027671,2]
[357442528,1744067470956,-1035.03,0.00027671,2]
[357442529,1744067470968,-668.67,0.00027671,2]
[357442530,1744067470980,-619.26,0.00027671,2]